bitfinex/quotes_BTCUSD_20241117
["timestamp","ask_amount","ask_price","bid_price","bid_amount"]
[1731848947157,0.1229,90887.0,90853.0,0.14808664]
[1731848947413,0.237972,90849.0,90848.0,0.0008565]
[1731848947644,0.232972,90849.0,90848.0,0.0008565]
[1731848947855,0.220147,90848.0,90823.0,0.00220186]
[1731848948076,0.1229,90849.0,90815.0,0.16470033]
[1731848948077,0.110084,90840.0,90824.0,0.00220187]
[1731848948347,0.12029744,90854.0,90825.0,0.00965612]
[1731848948571,0.24687614,90862.0,90825.0,0.00965612]
[1731848948572,0.09867631,90862.0,90825.0,0.00745431]
[1731848948796,0.220118,90860.0,90822.0,0.110104]
[1731848949020,0.110084,90840.0,90822.0,0.110104]
[1731848949247,0.220171,90839.0,90823.0,0.0024757]
[1731848949467,0.11008,90843.0,90825.0,0.110101]
[1731848949693,0.0772,90847.0,90818.0,0.12798811]
[1731848949923,0.09867631,90858.0,90828.0,0.110098]
[1731848949924,0.110077,90846.0,90828.0,0.110098]
[1731848950152,0.02228138,90850.0,90830.0,0.110095]
[1731848950373,0.02228138,90850.0,90823.0,0.220206]
[1731848950374,0.220145,90849.0,90829.0,0.00247005]
[1731848950594,0.220145,90849.0,90831.0,0.0024608]
[1731848950861,0.02228138,90850.0,90819.0,0.220216]
[1731848950862,0.110085,90839.0,90820.0,0.110107]
[1731848951092,0.220163,90842.0,90820.0,0.110107]
[1731848951319,0.110085,90839.0,90821.0,0.00245918]
[1731848951543,0.110085,90839.0,90821.0,0.11256418]
[1731848951759,0.16470033,90840.0,90821.0,0.11256418]
[1731848951982,0.16470033,90840.0,90823.0,0.110103]
[1731848952206,0.16470033,90830.0,90821.0,0.00245918]
[1731848952451,0.10906255,90839.0,90824.0,0.00245594]
[1731848952635,0.10906255,90839.0,90818.0,0.04508811]
[1731848952856,0.110088,90836.0,90817.0,0.2109667]
[1731848953070,0.10906255,90836.0,90819.0,0.00249324]
[1731848953297,0.10906255,90836.0,90817.0,0.1008567]
[1731848953298,0.10906255,90836.0,90818.0,0.00253957]
[1731848953516,0.16470033,90840.0,90820.0,0.00253632]
[1731848953735,0.16470033,90840.0,90823.0,0.110103]
[1731848953956,0.16470033,90840.0,90821.0,0.00253227]
[1731848954168,0.16470033,90840.0,90820.0,0.023]
[1731848954169,0.16470033,90840.0,90829.0,0.110096]
[1731848954382,0.02228138,90850.0,90826.0,0.081]
[1731848954383,0.16470033,90839.0,90826.0,0.081]
[1731848954599,0.16470033,90839.0,90830.0,0.00250145]
[1731848954810,0.16470033,90839.0,90826.0,0.081]
[1731848955041,0.220118,90861.0,90831.0,0.0025107]
[1731848955258,0.16470033,90839.0,90828.0,0.220196]
[1731848955473,0.21913455,90850.0,90832.0,0.00251473]
[1731848955693,0.21913455,90850.0,90832.0,0.110092]
[1731848955961,0.10906255,90850.0,90833.0,0.00251281]
[1731848956177,0.21913355,90850.0,90833.0,0.00251281]
[1731848956405,0.21913355,90850.0,90833.0,0.110091]
[1731848956835,0.10906255,90850.0,90834.0,0.00251119]
[1731848957040,0.16470033,90850.0,90835.0,0.220179]
[1731848957279,0.16470033,90850.0,90836.0,0.110088]
[1731848957492,0.110064,90856.0,90838.0,0.110085]
[1731848957707,0.16470033,90849.0,90839.0,0.0025253]
[1731848957918,0.21912455,90858.0,90840.0,0.110083]
[1731848958136,0.110063,90857.0,90840.0,0.110083]
[1731848958362,0.110063,90857.0,90841.0,0.00252445]
[1731848958363,0.16470033,90852.0,90841.0,0.00252445]
[1731848958580,0.16470033,90852.0,90838.0,0.110085]
[1731848958792,0.110063,90857.0,90842.0,0.00250499]
[1731848959010,0.110063,90857.0,90839.0,0.110084]
[1731848959228,0.16470033,90862.0,90840.0,0.00220148]
[1731848959457,0.16470033,90861.0,90843.0,0.023]
[1731848959693,0.16470033,90861.0,90848.0,0.110073]
[1731848959893,0.16470033,90861.0,90844.0,0.220157]
[1731848959894,0.16470033,90861.0,90845.0,0.220155]
[1731848960147,0.0485,90874.0,90850.0,0.110071]
[1731848960367,0.16470033,90871.0,90862.0,0.110056]
[1731848960581,0.16470033,90871.0,90865.0,0.110052]
[1731848960799,0.16470033,90881.0,90863.0,0.00244958]
[1731848961032,0.16470033,90881.0,90855.0,0.00220094]
[1731848961033,0.16470033,90881.0,90866.0,0.00245721]
[1731848961249,0.16470033,90881.0,90856.0,0.005]
[1731848961250,0.16470033,90880.0,90873.0,0.110043]
[1731848961479,0.16470033,90880.0,90868.0,0.220099]
[1731848961713,0.16470033,90880.0,90874.0,0.00245883]
[1731848961925,0.220059,90885.0,90869.0,0.00245445]
[1731848961926,0.110029,90885.0,90869.0,0.00245445]
[1731848962138,0.10906255,90890.0,90863.0,0.04425863]
[1731848962356,0.11003,90885.0,90867.0,0.11005]
[1731848962572,0.10906255,90890.0,90868.0,0.110049]
[1731848962800,0.110028,90886.0,90868.0,0.11251317]
[1731848963035,0.110048,90869.0,90868.0,0.00246417]
[1731848963253,0.29871055,90869.0,90868.0,0.00246417]
[1731848963479,0.034049,90868.0,90848.0,0.1109294]
[1731848963784,0.18866255,90869.0,90855.0,0.00247018]
[1731848963785,0.00628963,90869.0,90855.0,0.00247018]
[1731848963998,0.10906255,90869.0,90855.0,0.00247018]
[1731848964422,0.16470033,90870.0,90867.0,0.0143909]
[1731848964423,0.110049,90868.0,90867.0,0.0143909]
[1731848964632,0.13183752,90870.0,90867.0,0.0143909]
[1731848965067,0.110049,90868.0,90867.0,0.0143909]
[1731848968098,0.10906255,90870.0,90867.0,0.0143909]
[1731848968099,0.110049,90869.0,90867.0,0.0143909]
[1731848968315,0.110049,90868.0,90867.0,0.0143909]
[1731848969381,0.10906255,90870.0,90867.0,0.0143909]
[1731848969805,0.21910955,90870.0,90867.0,0.0143909]
[1731848970272,0.21910955,90870.0,90857.0,0.01439248]
[1731848970502,0.10906255,90870.0,90857.0,0.01439248]
[1731848970720,0.10906255,90870.0,90858.0,0.00243318]
[1731848970967,0.26293443,90880.0,90859.0,0.00220122]
[1731848971193,0.16470033,90880.0,90866.0,0.110051]
[1731848971461,0.16470033,90880.0,90857.0,0.06059248]
[1731848971462,0.16470033,90880.0,90860.0,0.00248774]
[1731848971679,0.16470033,90880.0,90867.0,0.00247639]
[1731848971908,0.16470033,90880.0,90864.0,0.110054]
[1731848972126,0.16470033,90880.0,90868.0,0.00247477]
[1731848972340,0.16470033,90880.0,90865.0,0.00246714]
[1731848972547,0.110029,90886.0,90869.0,0.00246066]
[1731848972756,0.110023,90890.0,90873.0,0.110043]
[1731848972963,0.00220084,90889.0,90870.0,0.00246743]
[1731848973175,0.00220084,90889.0,90874.0,0.11250185]
[1731848973385,0.00220084,90889.0,90855.0,0.005]
[1731848973606,0.10906255,90890.0,90817.0,0.09922376]
[1731848973607,0.00220084,90890.0,90875.0,0.00244429]
[1731848973813,0.00220084,90890.0,90869.0,0.220095]
[1731848974021,0.00220084,90890.0,90876.0,0.00244429]
[1731848974022,0.11222384,90890.0,90876.0,0.00244429]
[1731848974231,0.11222384,90890.0,90873.0,0.110043]
[1731848974662,0.00220084,90890.0,90874.0,0.00244754]
[1731848974885,0.001714,90880.0,90874.0,0.00244754]
[1731848975117,0.001714,90880.0,90879.0,0.110036]
[1731848975781,0.001714,90880.0,90879.0,0.11245922]
[1731848976206,0.001714,90880.0,90879.0,0.00242322]
[1731848976664,0.001714,90880.0,90879.0,0.11245922]
[1731848977310,0.001714,90880.0,90879.0,0.00242322]
[1731848977508,0.001714,90880.0,90879.0,0.110036]
[1731848977713,0.001714,90880.0,90879.0,0.11245922]
[1731848978569,0.16470033,90892.0,90879.0,0.11245922]
[1731848978570,0.09041433,90892.0,90880.0,0.110034]
[1731848978781,0.00220084,90891.0,90881.0,0.110033]
[1731848979039,0.00220084,90891.0,90881.0,0.1124563]
[1731848979895,0.00220084,90891.0,90881.0,0.0024233]
[1731848980115,0.00220084,90891.0,90876.0,0.300179]
[1731848980326,0.00220084,90891.0,90873.0,0.110043]
[1731848980533,0.00220084,90891.0,90877.0,0.00242817]
[1731848980756,0.00220084,90891.0,90879.0,0.110036]
[1731848981204,0.00220084,90891.0,90880.0,0.0024233]
[1731848981662,0.00220084,90891.0,90870.0,0.10906255]
[1731848981663,0.00220084,90891.0,90877.0,0.110038]
[1731848981879,0.00220084,90891.0,90881.0,0.00242168]
[1731848982119,0.00220084,90891.0,90876.0,0.110039]
[1731848982337,0.00220084,90891.0,90882.0,0.00242006]
[1731848982545,0.00220084,90891.0,90878.0,0.110037]
[1731848982764,0.00220084,90891.0,90876.0,0.220079]
[1731848982765,0.00220084,90891.0,90883.0,0.00241844]
[1731848983028,0.00220084,90891.0,90876.0,0.220079]
[1731848983029,0.0017128,90893.0,90879.0,0.16470033]
[1731848983263,0.0017128,90893.0,90878.0,0.00220054]
[1731848983264,0.0017128,90893.0,90884.0,0.00239219]
[1731848983512,0.0017128,90893.0,90885.0,0.0801]
[1731848983742,0.0017128,90893.0,90889.0,0.110023]
[1731848984223,0.0017128,90893.0,90890.0,0.1124202]
[1731848984445,0.0017128,90893.0,90892.0,0.11002]
[1731848984694,0.0017128,90893.0,90890.0,0.0023982]
[1731848984905,0.0017128,90893.0,90892.0,0.00239496]
[1731848985130,0.0017128,90893.0,90891.0,0.00238409]
[1731848985340,0.0017128,90893.0,90883.0,0.220062]
[1731848985341,0.00220084,90902.0,90893.0,0.01267968]
[1731848985575,0.110016,90896.0,90893.0,0.01267968]
[1731848985811,0.00220084,90895.0,90893.0,0.01267968]
[1731848986045,0.38642773,90903.0,90893.0,0.01267968]
[1731848986046,0.00220084,90898.0,90893.0,0.01267968]
[1731848986473,0.110017,90895.0,90893.0,0.01267968]
[1731848986674,0.00220084,90894.0,90893.0,0.01267968]
[1731848987144,0.11221884,90894.0,90893.0,0.01267968]
[1731848988477,0.00220084,90894.0,90893.0,0.01267968]
[1731848988724,0.00220084,90897.0,90893.0,0.01267968]
[1731848989135,0.11220984,90902.0,90893.0,0.01267968]
[1731848989341,0.110009,90901.0,90894.0,0.00237356]
[1731848989575,0.00220084,90900.0,90893.0,0.01267968]
[1731848990638,0.11220884,90902.0,90894.0,0.0023809]
[1731848991112,0.00220084,90902.0,90893.0,0.01267968]
[1731848991348,0.10906255,90901.0,90893.0,0.01267968]
[1731848991560,0.110018,90894.0,90893.0,0.01267968]
[1731848991792,0.21908055,90894.0,90893.0,0.01267968]
[1731848992042,0.22128139,90894.0,90893.0,0.01267968]
[1731848993629,0.11126339,90894.0,90893.0,0.01267968]
[1731848993849,0.22128139,90894.0,90893.0,0.01267968]
[1731848994061,0.2571244,90894.0,90893.0,0.01267968]
[1731848994921,0.22128139,90894.0,90893.0,0.01267968]
[1731848995575,0.00220084,90894.0,90893.0,0.01267968]
[1731848996267,0.11221884,90894.0,90893.0,0.01267968]
[1731848997131,0.22128139,90894.0,90893.0,0.01267968]
[1731848997351,0.35138139,90894.0,90893.0,0.01267968]
[1731848997573,0.34918055,90894.0,90893.0,0.01267968]
[1731848999642,0.34918055,90894.0,90893.0,0.01439228]
[1731849000099,0.35003685,90894.0,90893.0,0.01439228]
[1731849000319,0.45003685,90894.0,90893.0,0.0017126]
[1731849000549,0.63410068,90894.0,90893.0,0.0017126]
[1731849000771,0.80090054,90894.0,90893.0,0.0017126]
[1731849001424,1.04682993,90894.0,90893.0,0.0017126]
[1731849002081,0.80090054,90894.0,90893.0,0.0017126]
[1731849002827,0.550095,90893.0,90869.0,0.05911428]
[1731849003051,0.110037,90878.0,90869.0,0.05911428]
[1731849003263,0.00220084,90877.0,90869.0,0.05911428]
[1731849003480,0.09854965,90887.0,90865.0,0.0008566]
[1731849003481,0.00220084,90880.0,90865.0,0.0008566]
[1731849003697,0.00220084,90880.0,90870.0,0.00239956]
[1731849003898,0.110034,90881.0,90866.0,0.110051]
[1731849004102,0.00220084,90880.0,90866.0,0.110051]
[1731849004302,0.11223584,90880.0,90867.0,0.00241091]
[1731849004504,0.00220084,90880.0,90867.0,0.00241091]
[1731849005270,0.00220084,90880.0,90867.0,0.11246091]
[1731849005639,0.00220084,90880.0,90868.0,0.110049]
[1731849005880,0.00220084,90880.0,90871.0,0.16470033]
[1731849006080,0.00220084,90882.0,90870.0,0.220094]
[1731849006300,0.110028,90886.0,90872.0,0.0024127]
[1731849006551,0.110028,90886.0,90871.0,0.110045]
[1731849006552,0.00220084,90885.0,90873.0,0.00241667]
[1731849006969,0.00220084,90885.0,90871.0,0.110045]
[1731849007173,0.00220084,90885.0,90874.0,0.00241343]
[1731849007377,0.00220084,90885.0,90872.0,0.00241667]
[1731849007514,0.33228984,90885.0,90875.0,0.00241181]
[1731849007719,0.11003,90884.0,90869.0,0.110048]
[1731849007921,0.00220084,90883.0,90870.0,0.00241829]
[1731849008537,0.09858089,90885.0,90865.0,0.0008566]
[1731849008766,0.110032,90883.0,90866.0,0.220104]
[1731849008999,0.110033,90882.0,90866.0,0.110052]
[1731849009228,0.110033,90882.0,90865.0,0.0008566]
[1731849009229,0.110032,90883.0,90867.0,0.22252254]
[1731849009504,0.09858089,90886.0,90867.0,0.00242154]
[1731849009707,0.09858089,90886.0,90869.0,0.110047]
[1731849009951,0.220054,90887.0,90865.0,0.0008566]
[1731849009952,0.220061,90884.0,90865.0,0.0008566]
[1731849010192,0.110038,90878.0,90870.0,0.00242153]
[1731849010397,0.110038,90878.0,90865.0,0.0008566]
[1731849010572,0.220065,90882.0,90871.0,0.00240695]
[1731849010811,0.0784,90883.0,90865.0,0.0008566]
[1731849010812,0.110038,90878.0,90865.0,0.0008566]
[1731849011012,0.110035,90880.0,90865.0,0.0008566]
[1731849011339,0.0784,90883.0,90866.0,0.00241505]
[1731849011545,0.110037,90879.0,90866.0,0.00241505]
[1731849011779,0.110039,90877.0,90866.0,0.00241505]
[1731849011998,0.110037,90879.0,90866.0,0.00241505]
[1731849012206,0.110037,90878.0,90866.0,0.00241505]
[1731849012414,0.110038,90878.0,90866.0,0.00241505]
[1731849012616,0.110038,90878.0,90870.0,0.0017126]
[1731849013043,0.09867831,90880.0,90871.0,0.00249265]
[1731849013258,0.09867831,90879.0,90870.0,0.0017126]
[1731849013672,0.20871431,90879.0,90870.0,0.0017126]
[1731849014143,0.110041,90875.0,90870.0,0.0017126]
[1731849014609,0.09867831,90877.0,90870.0,0.0017126]
[1731849014827,0.110044,90873.0,90870.0,0.0017126]
[1731849015048,0.09867831,90875.0,90870.0,0.0017126]
[1731849015049,0.20872031,90875.0,90870.0,0.0017126]
[1731849015266,0.09867831,90873.0,90870.0,0.0017126]
[1731849015511,0.09867831,90874.0,90870.0,0.0017126]
[1731849015731,0.09867831,90873.0,90870.0,0.0017126]
[1731849017243,0.110041,90875.0,90870.0,0.0017126]
[1731849017244,0.09867831,90874.0,90870.0,0.0017126]
[1731849018149,0.09867831,90875.0,90870.0,0.0017126]
[1731849018358,0.09867831,90876.0,90871.0,0.00250354]
[1731849018578,0.09867831,90876.0,90870.0,0.0017126]
[1731849018579,0.09867831,90873.0,90870.0,0.0017126]
[1731849019215,0.09867831,90873.0,90871.0,0.00249778]
[1731849019428,0.09867831,90873.0,90870.0,0.0017126]
[1731849020054,0.09867831,90874.0,90870.0,0.0017126]
[1731849020482,0.09867831,90874.0,90871.0,0.00249941]
[1731849020694,0.09867831,90873.0,90871.0,0.00249941]
[1731849021109,0.09867831,90874.0,90871.0,0.00249941]
[1731849021570,0.30641917,90879.0,90871.0,0.00249941]
[1731849021571,0.09867831,90879.0,90872.0,0.076]
[1731849021816,0.09867831,90880.0,90873.0,0.220085]
[1731849022045,0.09867831,90881.0,90878.0,0.110036]
[1731849022252,0.09867831,90881.0,90875.0,0.220082]
[1731849022466,0.09867831,90883.0,90880.0,0.110034]
[1731849022686,0.09867831,90883.0,90872.0,0.076]
[1731849022687,0.16470033,90892.0,90890.0,0.110022]
[1731849022896,0.16470033,90892.0,90888.0,0.110025]
[1731849022897,0.56219575,90891.0,90888.0,0.110025]
[1731849023112,0.56219575,90891.0,90889.0,0.110024]
[1731849023322,0.19755842,90892.0,90889.0,0.110024]
[1731849023530,0.14817578,90892.0,90889.0,0.110024]
[1731849024177,0.09878362,90890.0,90883.0,0.220063]
[1731849024438,0.09878388,90889.0,90878.0,0.16470033]
[1731849024664,0.09964018,90894.0,90893.0,0.110019]
[1731849024886,0.0008563,90894.0,90893.0,0.110019]
[1731849025116,0.0008563,90894.0,90893.0,0.11248923]
[1731849025348,0.0008563,90894.0,90893.0,0.110019]
[1731849025565,0.0008563,90894.0,90893.0,0.11249336]
[1731849028343,0.0008563,90894.0,90893.0,0.00247436]
[1731849028793,0.0008563,90894.0,90892.0,0.11002]
[1731849029047,0.0008563,90894.0,90893.0,0.110019]
[1731849029256,0.0008563,90894.0,90893.0,0.11248923]
[1731849029465,0.0008563,90894.0,90893.0,0.00247023]
[1731849029936,0.0008563,90894.0,90893.0,0.110019]
[1731849030155,0.0008563,90894.0,90893.0,0.11247368]
[1731849031283,0.0008563,90894.0,90893.0,0.27023623]
[1731849031491,0.0008563,90894.0,90893.0,0.45573623]
[1731849031946,0.0008563,90894.0,90893.0,0.45697094]
[1731849032858,0.0008563,90894.0,90893.0,0.49361066]
[1731849034175,0.0008563,90894.0,90893.0,0.51661066]
[1731849034390,0.0008563,90894.0,90893.0,0.48361066]
[1731849034602,0.0008563,90894.0,90893.0,0.48861066]
[1731849036809,0.0008563,90894.0,90893.0,0.49361066]
[1731849038569,0.0008563,90894.0,90893.0,0.51661066]
[1731849039910,0.0008563,90894.0,90893.0,0.48861066]
[1731849044483,0.0008563,90894.0,90893.0,0.49361066]
[1731849047473,0.0008563,90894.0,90893.0,0.36941066]
[1731849052719,0.0008563,90894.0,90893.0,0.36441066]
[1731849053162,0.0008563,90894.0,90893.0,0.36941066]
[1731849053417,0.0008563,90894.0,90893.0,0.36441066]
[1731849053647,0.09126903,90903.0,90902.0,0.210008]
[1731849053869,0.09126903,90903.0,90902.0,0.31907055]
[1731849054098,0.001713,90915.0,90909.0,0.109999]
[1731849054317,0.001713,90915.0,90908.0,0.110001]
[1731849054545,0.001713,90915.0,90910.0,0.00365548]
[1731849054769,0.001713,90915.0,90909.0,0.00365679]
[1731849054994,0.001713,90915.0,90911.0,0.00365416]
[1731849055217,0.001713,90915.0,90910.0,0.00365548]
[1731849055431,0.001713,90915.0,90912.0,0.00365285]
[1731849055610,0.001713,90915.0,90911.0,0.00365416]
[1731849055760,0.001713,90915.0,90908.0,0.11]
[1731849055962,0.001713,90915.0,90909.0,0.00365679]
[1731849056164,0.001713,90915.0,90908.0,0.11]
[1731849056391,0.001713,90915.0,90909.0,0.00365679]
[1731849056591,0.001713,90915.0,90909.0,0.11]
[1731849056776,0.001713,90915.0,90910.0,0.00365548]
[1731849057181,0.35569633,90913.0,90910.0,0.00365548]
[1731849057402,0.35569633,90913.0,90903.0,0.03499674]
[1731849057403,0.0486,90912.0,90893.0,0.220038]
[1731849057611,0.109998,90911.0,90900.0,0.16470033]
[1731849057802,0.0486,90912.0,90900.0,0.11001]
[1731849057803,0.158596,90912.0,90900.0,0.11001]
[1731849058042,0.158596,90912.0,90901.0,0.110008]
[1731849058043,0.0486,90912.0,90901.0,0.110008]
[1731849058251,0.0486,90912.0,90892.0,0.11077515]
[1731849058252,0.0486,90912.0,90892.0,0.14567178]
[1731849058453,0.0017122,90914.0,90902.0,0.00366587]
[1731849058662,0.16470033,90913.0,90911.0,0.109996]
[1731849059069,0.0017122,90914.0,90912.0,0.00365824]
[1731849059296,0.0017122,90914.0,90913.0,0.109995]
[1731849059506,0.0017122,90914.0,90909.0,0.219999]
[1731849059704,0.0017122,90914.0,90913.0,0.00365824]
[1731849059905,0.0017122,90914.0,90912.0,0.109996]
[1731849060059,0.0017122,90914.0,90909.0,0.219999]
[1731849060060,0.0017122,90914.0,90913.0,0.00365824]
[1731849060517,0.0017122,90914.0,90912.0,0.109996]
[1731849060667,0.0017122,90914.0,90913.0,0.00365824]
[1731849062354,0.0017122,90914.0,90913.0,0.11365324]
[1731849062592,0.0017122,90914.0,90913.0,0.00365824]
[1731849063035,0.0017122,90914.0,90911.0,0.109997]
[1731849063242,0.0017122,90914.0,90909.0,0.25524245]
[1731849063243,0.0017122,90914.0,90912.0,0.109995]
[1731849063474,0.0017122,90914.0,90912.0,0.11365578]
[1731849064587,0.0017122,90914.0,90912.0,0.00366078]
[1731849065038,0.0017122,90914.0,90909.0,0.03524345]
[1731849065253,0.0017122,90914.0,90913.0,0.00365947]
[1731849065494,0.0017122,90914.0,90908.0,0.22]
[1731849065495,0.0017122,90914.0,90912.0,0.109995]
[1731849065707,0.0017122,90914.0,90913.0,0.00365947]
[1731849065949,0.0017122,90914.0,90913.0,0.109995]
[1731849066150,0.0017122,90914.0,90913.0,0.11365447]
[1731849068605,0.14002553,90929.0,90920.0,0.109985]
[1731849068772,0.14002553,90929.0,90915.0,0.219985]
[1731849068989,0.14002553,90929.0,90921.0,0.11365033]
[1731849069211,0.14002553,90929.0,90917.0,0.21998]
[1731849069420,0.20649027,90941.0,90908.0,0.25493811]
[1731849069421,0.10032004,90940.0,90924.0,0.16470033]
[1731849069650,0.10906255,90939.0,90915.0,0.105]
[1731849069861,0.0017124,90940.0,90939.0,0.109963]
[1731849070300,0.0017124,90940.0,90939.0,0.11357485]
[1731849071925,0.0017124,90940.0,90939.0,0.2226374]
[1731849073253,0.0017124,90940.0,90939.0,0.35783121]
[1731849074241,0.0017124,90940.0,90939.0,0.24876866]
[1731849074887,0.0017124,90940.0,90939.0,0.00361185]
[1731849075342,0.0017124,90940.0,90937.0,0.109965]
[1731849075666,0.0017124,90940.0,90939.0,0.00338009]
[1731849075870,0.0017124,90940.0,90938.0,0.0033814]
[1731849076056,0.0017124,90940.0,90939.0,0.00338009]
[1731849076381,0.1116744,90940.0,90939.0,0.00338009]
[1731849076806,0.1116744,90940.0,90922.0,0.219968]
[1731849076807,0.219932,90937.0,90923.0,0.03605]
[1731849077010,0.219932,90937.0,90922.0,0.219968]
[1731849077011,0.109968,90935.0,90926.0,0.109978]
[1731849077213,0.219927,90939.0,90927.0,0.109978]
[1731849077421,0.109966,90937.0,90927.0,0.1133791]
[1731849077770,0.109967,90937.0,90927.0,0.0034011]
[1731849077975,0.0017124,90940.0,90927.0,0.1133791]
[1731849078385,0.10997,90934.0,90927.0,0.0034011]
[1731849078673,0.219927,90939.0,90927.0,0.0034011]
[1731849078886,0.109967,90937.0,90928.0,0.00339847]
[1731849079092,0.219927,90939.0,90928.0,0.00339847]
[1731849079300,0.109967,90936.0,90928.0,0.00339847]
[1731849080392,0.16470033,90938.0,90928.0,0.00339847]
[1731849080832,0.109967,90936.0,90927.0,0.109977]
[1731849081061,0.219927,90939.0,90929.0,0.00340241]
[1731849081300,0.0017124,90940.0,90926.0,0.16470033]
[1731849081301,0.1116754,90940.0,90930.0,0.109974]
[1731849081501,0.109965,90938.0,90930.0,0.00340241]
[1731849081946,0.0008563,90939.0,90930.0,0.00340241]
[1731849082174,0.219949,90930.0,90915.0,0.109992]
[1731849082406,0.0473,90931.0,90914.0,0.20056093]
[1731849082407,0.10998,90925.0,90924.0,0.16470033]
[1731849082661,0.10998,90925.0,90914.0,0.16470033]
[1731849082662,0.0784,90920.0,90914.0,0.16470033]
[1731849082875,0.109988,90919.0,90914.0,0.16470033]
[1731849083092,0.0784,90920.0,90906.0,0.220005]
[1731849083303,0.0784,90920.0,90911.0,0.109996]
[1731849083530,0.0784,90920.0,90914.0,0.109993]
[1731849083531,0.0024,90920.0,90914.0,0.109993]
[1731849083755,0.109981,90925.0,90903.0,0.0017126]
[1731849083756,0.16470033,90925.0,90903.0,0.0017126]
[1731849083986,0.16470033,90925.0,90903.0,0.03770239]
[1731849084217,0.109975,90930.0,90915.0,0.219985]
[1731849084430,0.16470033,90925.0,90915.0,0.219985]
[1731849084642,0.16470033,90925.0,90903.0,0.0017126]
[1731849084643,0.109987,90920.0,90916.0,0.00349422]
[1731849084850,0.16470033,90925.0,90916.0,0.00349422]
[1731849085060,0.0473,90931.0,90911.0,0.16470033]
[1731849085061,0.109987,90920.0,90911.0,0.16470033]
[1731849085272,0.219957,90927.0,90911.0,0.16470033]
[1731849085500,0.0473,90931.0,90912.0,0.00347822]
[1731849085729,0.109975,90930.0,90911.0,0.16470033]
[1731849085948,0.0473,90931.0,90911.0,0.16470033]
[1731849085949,0.0473,90931.0,90919.0,0.219975]
[1731849086162,0.157273,90931.0,90922.0,0.109983]
[1731849086400,0.157273,90931.0,90920.0,0.219973]
[1731849086401,0.109975,90930.0,90920.0,0.11346816]
[1731849086591,0.10978682,90930.0,90923.0,0.00347822]
[1731849086848,0.10978682,90930.0,90914.0,0.219987]
[1731849086849,0.0473,90931.0,90911.0,0.16470033]
[1731849087102,0.10906255,90929.0,90911.0,0.16470033]
[1731849087311,0.109986,90921.0,90912.0,0.00349268]
[1731849087752,0.109987,90920.0,90912.0,0.00349268]
[1731849088189,0.109985,90922.0,90912.0,0.11348868]
[1731849088648,0.109985,90921.0,90912.0,0.11348868]
[1731849088876,0.109984,90923.0,90913.0,0.109994]
[1731849089108,0.16470033,90926.0,90915.0,0.109991]
[1731849089338,0.109983,90923.0,90914.0,0.11412673]
[1731849089568,0.19470033,90926.0,90911.0,0.16470033]
[1731849089569,0.109982,90924.0,90916.0,0.00413537]
[1731849089776,0.109982,90924.0,90915.0,0.109992]
[1731849089777,0.109982,90924.0,90915.0,0.11412408]
[1731849089999,0.03,90926.0,90912.0,0.219992]
[1731849090295,0.03,90926.0,90911.0,0.16470033]
[1731849090296,0.03,90926.0,90920.0,0.109985]
[1731849090524,0.03,90926.0,90911.0,0.16470033]
[1731849090525,0.109982,90924.0,90915.0,0.109992]
[1731849090767,0.139979,90926.0,90921.0,0.00412715]
[1731849091030,0.10998,90925.0,90914.0,0.109994]
[1731849091285,0.109982,90924.0,90922.0,0.00412551]
[1731849091513,0.109982,90924.0,90915.0,0.11412737]
[1731849091726,0.109982,90924.0,90915.0,0.109992]
[1731849091915,0.10998,90925.0,90916.0,0.11412308]
[1731849092339,0.03,90926.0,90916.0,0.00413208]
[1731849092782,0.03,90926.0,90913.0,0.21999]
[1731849092783,0.03,90926.0,90918.0,0.109988]
[1731849093163,0.03,90926.0,90919.0,0.00413044]
[1731849093541,0.03,90926.0,90922.0,0.109983]
[1731849093921,0.03,90926.0,90923.0,0.00412387]
[1731849094242,0.03,90926.0,90919.0,0.109988]
[1731849094446,0.03,90926.0,90920.0,0.109986]
[1731849094646,0.03,90926.0,90920.0,0.1141148]
[1731849094866,0.03,90926.0,90920.0,0.0041288]
[1731849095081,0.109985,90921.0,90920.0,0.0041288]
[1731849095295,0.109985,90921.0,90916.0,0.001712]
[1731849095508,0.109984,90922.0,90916.0,0.001712]
[1731849095725,0.109984,90922.0,90917.0,0.00412551]
[1731849097312,0.109987,90920.0,90917.0,0.00412551]
[1731849098222,0.219974,90920.0,90917.0,0.00412551]
[1731849098433,0.109989,90918.0,90917.0,0.00412551]
[1731849098679,0.10999,90917.0,90916.0,0.001712]
[1731849098894,0.30075255,90917.0,90916.0,0.001712]
[1731849099142,0.44905255,90917.0,90916.0,0.001712]
[1731849099319,0.45105255,90917.0,90916.0,0.001712]
[1731849099543,0.54965247,90917.0,90916.0,0.001712]
[1731849099761,0.44905255,90917.0,90916.0,0.001712]
[1731849099997,0.15736255,90917.0,90916.0,0.001712]
[1731849100209,0.19860296,90925.0,90916.0,0.001712]
[1731849100415,0.1,90925.0,90916.0,0.001712]
[1731849100626,0.15829,90917.0,90916.0,0.001712]
[1731849100828,0.26735255,90917.0,90916.0,0.001712]
[1731849102588,0.48295255,90917.0,90916.0,0.001712]
[1731849102817,0.65215239,90917.0,90916.0,0.001712]
[1731849103024,0.60782344,90917.0,90916.0,0.001712]
[1731849103433,0.45995255,90917.0,90916.0,0.001712]
[1731849104062,0.346906,90904.0,90900.0,0.16470033]
[1731849104318,0.46096855,90904.0,90900.0,0.16470033]
[1731849104525,0.46096855,90904.0,90892.0,0.0017126]
[1731849104732,0.45596855,90904.0,90892.0,0.0017126]
[1731849108977,0.35096855,90904.0,90892.0,0.0017126]
[1731849109430,0.35596855,90904.0,90892.0,0.0017126]
[1731849109657,0.46096855,90904.0,90892.0,0.0017126]
[1731849110308,0.320024,90899.0,90888.0,0.16470033]
[1731849110508,0.110026,90887.0,90874.0,0.110042]
[1731849110936,0.110026,90887.0,90875.0,0.11004]
[1731849111384,0.16470033,90897.0,90877.0,0.110038]
[1731849111594,0.110023,90890.0,90877.0,0.110037]
[1731849111799,0.220034,90895.0,90871.0,0.0793]
[1731849112022,0.10906255,90894.0,90871.0,0.0793]
[1731849112437,0.110026,90888.0,90871.0,0.0793]
[1731849112659,0.110026,90888.0,90874.0,0.220084]
[1731849112884,0.10906255,90894.0,90871.0,0.0793]
[1731849113089,0.110024,90889.0,90871.0,0.0793]
[1731849113374,0.110024,90889.0,90876.0,0.110039]
[1731849113578,0.1,90909.0,90878.0,0.0811]
[1731849113824,0.16470033,90900.0,90892.0,0.0811]